Cogmind - Beta 16.1 @@@ ROGUE MODE // 2026.01.31 @ 10:50:55 Player: f3-rnm Result: Destroyed by SQ-DYB(R) with Subdweller Machine Gun Performance ------------- Evolutions (0) 0 Regions Visited (2) 400 Robots Destroyed (11) 55 Value Destroyed (230) 230 Prototype IDs (1) 20 Alien Tech Used (0) 0 Bonus (0) 0 TOTAL SCORE: 705 Bonus ------- None Cogmind --------- Core Integrity 0/250 Matter 290/300 Energy 100/100 System Corruption 0% Temperature Cool (0) Movement Core (1500) Ox29 Location -10/Subcaves Parts ------- > --- POWER (1) -------- (None) > --- PROPULSION (2) --- (None) > --- UTILITY (2) ------ Huge Storage Unit Blink Core > --- WEAPON (2) ------- (None) > --- INVENTORY (25) --- Small Storage Unit Large Storage Unit High-capacity Storage Unit Medium Matter Pod (100) Medium Matter Pod (42) Medium Matter Pod (0) Light Assault Rifle Light Assault Rifle Light Assault Rifle Light Assault Rifle Light Assault Rifle Hammer Peak State ------------ > --- POWER ------------ Ion Engine > --- PROPULSION ------- Light Treads Light Treads > --- UTILITY ---------- Small Storage Unit Blink Core > --- WEAPON ----------- Assault Rifle Light Assault Rifle > --- INVENTORY -------- Ion Engine Wheel Light Assault Rifle [Rating: 19] Favorites ----------- Power Ion Engine Engine Ion Engine Propulsion Light Treads Treads Light Treads Wheel Compact Wheel Flight Unit Flight Unit Utility Blink Core Device Blink Core Storage Huge Storage Unit Weapon Light Assault Rifle Ballistic Gun Light Assault Rifle Impact Weapon Hammer Build | -11 -10 -10 ------- Run | Yrd Mat Sub Slots Evolved . | . . . Power . | . . . Propulsion . | . . . Utility . | . . . Weapon . | . . . Parts Attached 15 | 8 6 1 Power 2 | 2 . . Engine 2 | 2 . . Core . | . . . Reactor . | . . . Propulsion 5 | 2 2 1 Treads 2 | 2 . . Leg . | . . . Wheel 2 | . 2 . Hover . | . . . Flight 1 | . . 1 Utility 3 | 2 1 . Device 1 | 1 . . Storage 2 | 1 1 . Processor . | . . . Hackware . | . . . Protection . | . . . Artifact . | . . . Weapon 5 | 2 3 . Energy Gun . | . . . Energy Cannon . | . . . Ballistic Gun 4 | 2 2 . Ballistic Cannon . | . . . Launcher . | . . . Special Weapon . | . . . Impact Weapon 1 | . 1 . Slashing Weapon . | . . . Piercing Weapon . | . . . Special Melee Weapon . | . . . Unidentified Prototypes . | . . . Parts Lost 5 | . 3 2 Power 1 | . 1 . Propulsion 3 | . 2 1 Utility . | . . . Weapon 1 | . . 1 Highest Loss Streak 1 | . 1 1 To Critical Strikes . | . . . Average Backups 8 | 2 7 12 Power . | . . . Propulsion . | . . . Utility 3 | . 3 6 Weapon 3 | . 3 6 Tool/Special . | . . . Unused Backups 9 | . . 9 Power . | . . . Propulsion . | . . . Utility 5 | . . 5 Weapon 4 | . . 4 Tool/Special . | . . . Average Slot Usage (%) 71 | . 82 40 Engine 3 | . 5 . Treads 9 | . 12 . Wheel 7 | . 8 4 Device 14 | . 14 14 Storage 14 | . 14 14 Ballistic Gun 20 | . 25 7 Impact Weapon 1 | . 1 . Peak Build Rating 19 | 19 19 18 Average Rating 17 | 14 18 15 On Entrance 12 | 1 18 18 Avg Prop Armor Cover (%) 15 | . 15 . Naked Turns . | . . . Heaviest Build 91 | 21 91 90 Greatest Support 40 | 40 40 16 Greatest Overweight (x) 29 | 1 9 29 Average Overweight (x) 4 | . 4 9 Largest Inventory Capacity 25 | 8 25 25 Average Capacity 18 | 7 18 25 Most Carried 13 | 4 13 13 Average Carried 8 | 2 7 12 Final Capacity 25 | 8 25 25 Final Carried 13 | 2 13 12 Class Distribution -------------------- 100% | Mutant Dominant Class ---------------- Mutant | -10/Materials Mutant | -10/Subcaves Resources | -11 -10 -10 ----------- Run | Yrd Mat Sub Matter Collected 572 | 174 398 . Remotely . | . . . Salvage Created 286 | . 286 . Parts 14 | . 14 . Haulers Intercepted . | . . . Recyclers Shooed . | . . . Parts Field Recycled . | . . . Retrieved Matter . | . . . Parts Self-Destructed 3 | . . 3 Prevented . | . . . Parts Restored . | . . . Kills | -11 -10 -10 ------- Run | Yrd Mat Sub Combat Hostiles Destroyed 11 | . 11 . Guns 10 | . 10 . Classes Destroyed 2 | . 2 . Swarmer 6 | . 6 . Grunt 5 | . 5 . Best Kill Streak 3 | . 3 . Combat Bots Only 3 | . 3 . Max Kills in Single Turn 1 | . 1 . Gunslinging . | . . . Exploded . | . . . Melee . | . . . Uniques/NPCs Destroyed . | . . . Combat | -11 -10 -10 -------- Run | Yrd Mat Sub Hostile Shots Fired 120 | . 97 23 Missed 28 | . 21 7 Hits 92 | . 76 16 Projectile 92 | . 76 16 Damage Taken 943 | . 698 245 Core 266 | . 166 100 Absorbed by Shields . | . . . Core Remaining (%) 100 | 100 . . Volleys Fired 47 | . 40 7 Largest 2 | . 2 2 Hottest 40 | . 40 40 Shots Fired 89 | . 80 9 Gun 89 | . 80 9 Cannon . | . . . Launcher . | . . . Special . | . . . Kinetic 89 | . 80 9 Thermal . | . . . Explosive . | . . . Electromagnetic . | . . . Robot Hit Streak 6 | . 6 5 Robot Miss Streak 4 | . 4 1 Penetration Max . | . . . Secondary Targets 2 | . 2 . Max Gunslinging Chain 1 | . 1 . Shots Hit Robots 54 | . 47 7 Core Hits 21 | . 19 2 Critical Kills . | . . . Critical Parts Destroyed 2 | . 2 . Critical Strikes 2 | . 2 . Destroy 1 | . 1 . Smash 1 | . 1 . Melee Attacks 9 | . 9 . Impact 9 | . 9 . Slashing . | . . . Piercing . | . . . Sneak Attacks 1 | . 1 . Combat Hostiles . | . . . Follow-up Attacks . | . . . Damage Inflicted 609 | . 544 65 Guns 430 | . 365 65 Cannons . | . . . Explosions . | . . . Melee 179 | . 179 . Ramming . | . . . Kinetic 430 | . 365 65 Thermal . | . . . Explosive . | . . . Electromagnetic . | . . . Impact 179 | . 179 . Slashing . | . . . Piercing . | . . . Highest Corruption . | . . . Average Corruption . | . . . Corruption Purged . | . . . Corruption Blocked . | . . . Overload Shots . | . . . Overflow Damage 57 | . 57 . Projectiles . | . . . Explosions . | . . . Melee 57 | . 57 . Knockbacks . | . . . Impact . | . . . Kinetic . | . . . Secondary . | . . . Self-Inflicted Damage . | . . . Shots . | . . . Rammed 1 | . 1 . Targets Rammed 1 | . 1 . Kicked . | . . . Crushed . | . . . Highest Temperature 12 | . 12 . Average Temperature 3 | . 3 . Received Heat Transfer 303 | . 198 105 Siege Activations . | . . . Martial Activations . | . . . Shielding Activations . | . . . Robots Disrupted . | . . . Combat Hostiles . | . . . Robots Corrupted 1 | . 1 . Combat Hostiles 1 | . 1 . Parts Fried 1 | . 1 . Impact Corruptions 3 | . 3 . Robots Melted . | . . . Combat Hostiles . | . . . Parts Melted . | . . . Heat Transferred . | . . . Parts Sabotaged . | . . . Parts Stolen . | . . . Parts Stripped . | . . . Power Chain Reactions . | . . . Alert | -11 -10 -10 ------- Run | Yrd Mat Sub Maximum Alert Level . | . . . Low Security (%) 100 | 100 100 . Level 1 . | . . . Level 2 . | . . . Level 3 . | . . . Level 4 . | . . . Level 5 . | . . . High Security . | . . . Max Security . | . . . Peak Influence 58 | . 58 . Initial . | . . . Average 13 | . 16 . Influence Increases 263 | . 263 . Destroy 0b10 Robot/C 220 | . 220 . Destroy Leader 40 | . 40 . Destroy Structure 3 | . 3 . Influence Decreases 263 | . 241 22 Entered New Map 11 | . . 11 Time Decay 232 | . 221 11 Lost Part 20 | . 20 . Squads Dispatched 2 | . 2 . Investigation 1 | . 1 . Extermination . | . . . Reinforcement 1 | . 1 . Assault . | . . . Garrison . | . . . Intercept . | . . . Searches Triggered . | . . . Construction Impeded . | . . . Haulers Reinforced . | . . . Active Scanning Responses . | . . . Cargo Convoy Interrupts . | . . . Stealth | -11 -10 -10 --------- Run | Yrd Mat Sub Distress Signals 2 | . 2 . Communications Jammed . | . . . Distress Signals . | . . . Times Spotted 29 | . 21 8 Peak Tracking Total 4 | . 4 3 Tactical Retreats . | . . . Traps | -11 -10 -10 ------- Run | Yrd Mat Sub Traps Triggered . | . . . Indirectly . | . . . Trap Hack Attempts . | . . . Triggered . | . . . Disarmed . | . . . Reprogrammed . | . . . Reused . | . . . Traps Extracted . | . . . Installed . | . . . Triggered . | . . . Machines | -11 -10 -10 ---------- Run | Yrd Mat Sub Machines Disabled . | . . . Max in Single Turn . | . . . Machines Repaired . | . . . Machines Dismantled . | . . . Machines Sabotaged . | . . . Overloaded Fab Kills . | . . . Hacking | -11 -10 -10 --------- Run | Yrd Mat Sub Machines Accessed . | . . . Terminals . | . . . Fabricators . | . . . Repair Stations . | . . . Recycling Units . | . . . Scanalyzers . | . . . Garrison Access . | . . . Total Hacks . | . . . Successful . | . . . Failed . | . . . Catastrophic . | . . . Database Lockouts . | . . . Manual . | . . . Terminals . | . . . Fabricators . | . . . Repair Stations . | . . . Recycling Units . | . . . Scanalyzers . | . . . Garrison Access . | . . . Terminal Hacks . | . . . Fabricator Hacks . | . . . Repair Station Hacks . | . . . Recycling Unit Hacks . | . . . Scanalyzer . | . . . Garrison Access Hacks . | . . . Unauthorized Hacks . | . . . Terminals . | . . . Fabricators . | . . . Repair Stations . | . . . Recycling Units . | . . . Scanalyzers . | . . . Garrison Access . | . . . Data Cores Recovered . | . . . Used . | . . . Hacking Detections . | . . . Full Trace Events . | . . . Feedback Events . | . . . Feedback Blocked . | . . . Robot Schematics Acquired . | . . . Robots Built . | . . . Authchips . | . . . Time . | . . . Total Robot Build Rating . | . . . Part Schematics Acquired . | . . . Parts Built . | . . . Authchips . | . . . Time . | . . . Total Part Build Rating . | . . . Part Studies Acquired . | . . . Parts Repaired . | . . . Time . | . . . Parts Recycled . | . . . Recycled Matter . | . . . Retrieved Matter . | . . . Retrieved Components . | . . . Parts Scanalyzed . | . . . Part Schematics Acquired . | . . . Parts Damaged . | . . . Bothacking | -11 -10 -10 ------------ Run | Yrd Mat Sub Used RIF Installer . | . . . Robots Hacked . | . . . Non-combat . | . . . Combat . | . . . Robot Hacks Applied . | . . . Relay Couplers Released . | . . . Fabnet Peak Effective % . | . . . Robots Rewired . | . . . Allies Hacked . | . . . Hacks Repelled . | . . . Allies | -11 -10 -10 -------- Run | Yrd Mat Sub Total Allies . | . . . Largest Group . | . . . Highest-Rated Group . | . . . Highest-Rated Ally . | . . . Total Orders . | . . . Ally Attacks . | . . . Total Damage . | . . . Kills . | . . . Allies Corrupted . | . . . Allies Melted . | . . . Intel | -11 -10 -10 ------- Run | Yrd Mat Sub Active Infowar (turns) . | . . . Robot Analysis Total . | . . . Derelict Logs Recovered . | . . . Drone Launches . | . . . Drone Recoveries . | . . . Exploration | -11 -10 -10 ------------- Run | Yrd Mat Sub Turns Passed 1837 | 236 1166 435 Spaces Moved 587 | 79 426 82 Core 19 | 4 . 15 Treads 240 | 75 165 . Legs . | . . . Wheels 327 | . 261 66 Hover . | . . . Flight 1 | . . 1 Fastest Speed 50 | 50 95 175 Average Speed 233 | 174 205 436 Slowest Speed 1720 | 240 320 1720 Overloaded Moves . | . . . Propulsion Burnouts . | . . . Robots Hopped . | . . . Potential Cave-ins . | . . . Cave-ins Triggered . | . . . Teleports 28 | 8 4 16 Exploration Rate (%) 32 | 5 75 17 Regions Visited 2 Branch Regions 1 Pre-discovered Areas . | . . . Known Exits Taken . | . . . Unknown Exits Taken 2 | 1 1 . Scrap Searched . | . . . Spaces Dug 3 | . 3 . Terrain Destroyed 3 | . 3 . Melee 3 | . 3 . Projectile . | . . . AOE . | . . . Terrain Rammed . | . . . Walls Destroyed . | . . . Machines Disabled . | . . . Actions | -11 -10 -10 --------- Run | Yrd Mat Sub Total 964 | 175 627 162 Wait 291 | 86 133 72 Move 585 | 78 425 82 Hop . | . . . Pick Up 16 | 3 13 . Fast Attach 6 | 6 . . Attach 6 | 2 3 1 Detach . | . . . Swap 3 | . 3 . Drop . | . . . Fire 47 | . 40 7 Melee 9 | . 9 . Ram . | . . . Kick . | . . . Crush 1 | . 1 . Escape Stasis . | . . . Rewire . | . . . Trap . | . . . Miscellaneous . | . . . Route ------- -11/Scrapyard -10/Materials (discovered 4 exits: [*Mat x2] / [*Min] / [*Sub]) -10/Subcaves History --------- Turn | Location | Event 7 | -11/Scrapyard | Discovered new exit (range 15) 70 | -11/Scrapyard | Found Blink Core 237 | -11/Scrapyard | Entered Materials 314 | -10/Materials | Build established: Mutant 587 | -10/Materials | Discovered new exit (range 5) 849 | -10/Materials | Discovered new exit (range 6) 1073 | -10/Materials | Core integrity fell below 50% 1161 | -10/Materials | Discovered new exit (range 3) 1380 | -10/Materials | Discovered new exit (range 7) 1403 | -10/Materials | Entered Subcaves 1438 | -10/Subcaves | A swath of the cavern ceiling suddenly collapsed 1495 | -10/Subcaves | Core integrity fell below 20% 1523 | -10/Subcaves | A Subdweller sparked back to life 1523 | -10/Subcaves | A Subdweller sparked back to life 1523 | -10/Subcaves | A Subdweller sparked back to life 1838 | -10/Subcaves | Destroyed by SQ-DYB(R) with Subdweller Machine Gun Last Messages --------------- 01492_ Lgt. Assault Rifle destroyed. 01501_ Blink Core suddenly shrinks, drawing all nearby mass into a quantum tunnel. 01501_ Lgt. Assault Rifle ripped away by subspace vortex. 01501_ Assault Rifle grabbed from subspace vortex. 01522_ Blink Core suddenly shrinks, drawing all nearby mass into a quantum tunnel. 01522_ Assault Rifle ripped away by subspace vortex. 01523_ MW-UI2(R) creaks and sparks as it begins to move. 01523_ SQ-DYB(R) creaks and sparks as it begins to move. 01523_ WQ-QWT(R) creaks and sparks as it begins to move. 01535_ Blink Core suddenly shrinks, drawing all nearby mass into a quantum tunnel. 01535_ Com. Wheel ripped away by subspace vortex. 01554_ Flight Unit destroyed. 01556_ Blink Core suddenly shrinks, drawing all nearby mass into a quantum tunnel. 01803_ Subatomizers dissect the Disposable Heat Sink. 01809_ Blink Core suddenly shrinks, drawing all nearby mass into a quantum tunnel. Map ----- +----------------------------------------------------+ | ? #??????????????#????????????????? ?????????# | | ? #???????????? ###???????????????? ?????????# | | ??# #??????????? ?#???????????# ? #????###?# | | ??# #?#####??? ? #????????????# ????# ### | | ???# ## ##?? ? ??????????????# ??### | | ????? ## ? #??????????????## #?# | | ??????# # #????????????#### ## | | ?####??# # #????????????? # | | ## ##?# ???????????????? ### | | # ### ????????????????? ###### ### | | # ## #????#??#?????????? #????# | | ## #????# ## ????????? #????# | | ## #????# ????????#%!#????# | | ## #??### ???????# #???### | | ##?## ?????## #???# | | ###?#? ###### #???# ## # | | ##???# ???# # ## #??# ?## # | | ### #????# ???# #??# #??## # | | #??## ##???## #?# #??# #????##### | | ????## #????? ## RR### #??## ?????????? | | ?????### #??????? ### #???#??????????? | | ??????? ???? ?## #??????????????? | | ???????# ##? ##### ?## ###???????????? | | ???????# ??# ????### < ### ###?????????? | | ???????# #????????# < #?# ###???????? | | ???????? ????????## @<#?#### #???????? | | ???????? ?????????## <#????# ##???????? | | ???????? #??????????# < #??### #????????? | | ????????#???????????# #### #?## #????????? | | ????????????????????##???? #????????? | | ?????????????????????????? %##????????? | | ?????????????????????????? ## % #?????????? | | ?????????????????????????? #??## ##?????????? | | ??????????????????????????## ????# #??????????? | | ???????????????????????????# ????# ##??????????? | | ????????????????????????????# ???## #???????????? | | ?????????????????????????????# ???? ???????????? | | ??????????????????????????????##??? ??????????? | | ??????????????????????????????????? ?? ??????????? | | ??????????????????????????????????? ??" ?????????? | | ???????????????????????????????????????" ????????? | | ???????????????????????????????????????"#????????? | | ?????????????????????????????????????????????????? | | ?????????????????????????????????????????????????? | | ?????????????????????????????????????????????????? | | ?????????????????????????????????????????????????? | | ?????????????????????????????????????????????????? | | ?????????????????????????????????????????????????? | | ?????????????????????????????????????????????????? | | ?????????????????????????????????????????????????? | +----------------------------------------------------+ Best States ------------- Heat Dissipation 25 Energy Generation 10 Energy Capacity 250 Matter Stores 300 Matter Capacity 300 Sight Range 16 Terrain Scan Density 10 Evasion (%) 41 Recoil Reduction 2 Item Schematics ----------------- None Robot Schematics ------------------ None Fabricated ------------ Nothing Repaired ---------- Nothing Studied --------- None Alien Tech Used ----------------- None Achievements -------------- None Challenges ------------ None Game ------ Seed NovaConstructScreen Manual? 0 Play Time 00:05:44 Cumulative 429.8 hours Start 2026.01.31 @ 10:46:00 End 2026.01.31 @ 10:50:55 Sessions 1 Manual Loads 0 Difficulty Rogue Special Mode None Game No. 384 Rogue 348 Adventurer 36 Explorer 0 Win Type - Total 17 Types 8/0/9/0/0/0/0/0/0/0 Lore% 72 Gallery% 85 Achievement% 65 Wizard Run 0 Options --------- Layout 0 ASCII 0 Keyboard 0 Movement Mouse Keybinds 0 Fullscreen 1 Font 18/SmallcapsGlow Map View 76x50 Zoom Use 0% Tactical HUD 1 Map Filters NONE Filters NONE Steam 1 RUN: ce7885a2-8303-415d-9729-e179258158a0